bitfinex/quotes_BTCUSD_20241103
["timestamp","ask_amount","ask_price","bid_price","bid_amount"]
[1730640036925,6.61701077,68445.0,68444.0,10.83624429]
[1730640037566,6.27001077,68445.0,68444.0,10.83624429]
[1730640037832,5.24401077,68445.0,68444.0,10.83624429]
[1730640038067,4.8268746,68445.0,68444.0,10.83624429]
[1730640038302,4.81596455,68445.0,68444.0,10.83624429]
[1730640038545,4.82687337,68445.0,68444.0,10.83624429]
[1730640038993,4.87319219,68445.0,68444.0,10.83624429]
[1730640039482,4.95129219,68445.0,68444.0,10.83624429]
[1730640039975,4.95129219,68445.0,68444.0,10.83372038]
[1730640040199,4.95129219,68445.0,68444.0,10.83614442]
[1730640040903,4.92839177,68445.0,68444.0,10.83614442]
[1730640041135,7.9213224,68445.0,68444.0,10.83614442]
[1730640041372,5.51795857,68445.0,68444.0,10.83614442]
[1730640041731,7.9213224,68445.0,68444.0,10.83614442]
[1730640041826,7.92132234,68445.0,68444.0,10.83614442]
[1730640042059,7.92132234,68445.0,68444.0,10.83372038]
[1730640042060,8.60117465,68445.0,68444.0,10.83372038]
[1730640042307,8.8448664,68445.0,68444.0,10.76050038]
[1730640042536,8.61907465,68445.0,68444.0,10.76292442]
[1730640042764,8.64707465,68445.0,68444.0,10.76292442]
[1730640043503,8.64707465,68445.0,68444.0,10.5615528]
[1730640043944,8.63307465,68445.0,68444.0,10.5615528]
[1730640044170,8.61907465,68445.0,68444.0,10.5615528]
[1730640044384,8.63307465,68445.0,68444.0,10.5615528]
[1730640044609,8.61907465,68445.0,68444.0,10.5615528]
[1730640044830,8.64707465,68445.0,68444.0,10.5615528]
[1730640045049,8.63616589,68445.0,68444.0,10.5615528]
[1730640045263,8.64707113,68445.0,68444.0,10.5615528]
[1730640045500,8.63307113,68445.0,68444.0,10.5615528]
[1730640045747,8.64707113,68445.0,68444.0,10.55912876]
[1730640045979,8.64707113,68445.0,68444.0,10.5615528]
[1730640048141,8.6699727,68445.0,68444.0,10.5615528]
[1730640049530,8.66981356,68445.0,68444.0,10.5615528]
[1730640051162,11.43373456,68445.0,68444.0,10.5615528]
[1730640051399,10.17583229,68445.0,68444.0,10.5615528]
[1730640051632,7.40541474,68445.0,68444.0,10.5615528]
[1730640051866,6.88996797,68445.0,68444.0,10.5615528]
[1730640052081,6.88997029,68445.0,68444.0,10.5615528]
[1730640053451,6.88997029,68445.0,68444.0,10.47918309]
[1730640053671,6.88497029,68445.0,68444.0,10.47918309]
[1730640053890,6.87597029,68445.0,68444.0,10.47918309]
[1730640054105,7.1196643,68445.0,68444.0,10.47918309]
[1730640054328,6.88997029,68445.0,68444.0,10.47918309]
[1730640054567,6.8874367,68445.0,68444.0,10.47918309]
[1730640054788,7.14767456,68445.0,68444.0,10.47918309]
[1730640055020,7.14267456,68445.0,68444.0,10.47918309]
[1730640055241,6.8849701,68445.0,68444.0,10.47918309]
[1730640056142,7.14267456,68445.0,68444.0,10.47918309]
[1730640056573,11.39808446,68445.0,68444.0,10.47918309]
[1730640056789,11.99503123,68445.0,68444.0,10.47918309]
[1730640057003,11.73732677,68445.0,68444.0,10.47918309]
[1730640057458,11.74232677,68445.0,68444.0,10.47918309]
[1730640058112,11.78912677,68445.0,68444.0,10.47918309]
[1730640058567,11.78924615,68445.0,68444.0,10.47918309]
[1730640058822,11.76634458,68445.0,68444.0,10.47918309]
[1730640061019,11.76634458,68445.0,68444.0,10.46923883]
[1730640061718,8.34055812,68445.0,68444.0,10.46923883]
[1730640061961,11.36334435,68445.0,68444.0,10.46923883]
[1730640062185,11.52386712,68445.0,68444.0,10.46923883]
[1730640062418,7.00475722,68445.0,68444.0,10.46414551]
[1730640062647,6.48931045,68445.0,68444.0,10.46414551]
[1730640062873,7.18931045,68445.0,68444.0,10.46414551]
[1730640063344,7.18931045,68445.0,68444.0,10.26280246]
[1730640063820,5.915854,68445.0,68444.0,10.26280246]
[1730640064038,5.05572094,68445.0,68444.0,10.26280246]
[1730640064545,5.18391062,68445.0,68444.0,10.26280246]
[1730640065027,5.18391062,68445.0,68444.0,10.26037842]
[1730640065243,5.88391062,68445.0,68444.0,10.26037842]
[1730640065453,6.30104679,68445.0,68444.0,10.26281202]
[1730640065668,5.60104679,68445.0,68444.0,10.26281202]
[1730640065879,5.2302297,68445.0,68444.0,10.26281202]
[1730640067409,9.4754396,68445.0,68444.0,10.26281202]
[1730640067654,12.23304575,68445.0,68444.0,10.26281202]
[1730640067892,12.24396473,68445.0,68444.0,10.26281202]
[1730640068551,12.266865,68445.0,68444.0,10.26281202]
[1730640068824,12.966865,68445.0,68444.0,10.26281202]
[1730640070415,12.967056,68445.0,68444.0,10.26281202]
[1730640070673,8.73628047,68445.0,68444.0,10.26281202]
[1730640070895,3.3525108,68445.0,68444.0,10.26281202]
[1730640071144,2.10611009,68445.0,68444.0,10.30687842]
[1730640071359,2.10611009,68445.0,68444.0,10.30932457]
[1730640071360,2.21235509,68445.0,68444.0,10.30932457]
[1730640071594,2.19243611,68445.0,68444.0,10.30932457]
[1730640071830,2.18935664,68445.0,68444.0,10.30932457]
[1730640072060,2.21735664,68445.0,68444.0,10.30932457]
[1730640072278,2.31235664,68445.0,68444.0,10.30932457]
[1730640072536,2.31735664,68445.0,68444.0,10.30932457]
[1730640072752,2.20611164,68445.0,68444.0,10.30932457]
[1730640072967,4.46980564,68445.0,68444.0,10.30932457]
[1730640073187,4.83044804,68445.0,68444.0,10.30932457]
[1730640073411,4.83044804,68445.0,68444.0,10.22697191]
[1730640073886,4.08841804,68445.0,68444.0,10.22697191]
[1730640074129,4.04849492,68445.0,68444.0,10.22697191]
[1730640074356,3.70808164,68445.0,68444.0,10.22697191]
[1730640074819,3.69716111,68445.0,68444.0,10.22697191]
[1730640075058,2.34719283,68445.0,68444.0,10.22697191]
[1730640075274,2.31689283,68445.0,68444.0,10.22697191]
[1730640075740,2.35893876,68445.0,68444.0,10.22697191]
[1730640075959,2.33817332,68445.0,68444.0,10.22697191]
[1730640076173,2.48427532,68445.0,68444.0,10.22697191]
[1730640076892,2.24797691,68445.0,68444.0,10.22697191]
[1730640077106,2.10187491,68445.0,68444.0,10.22697191]
[1730640077541,2.33807955,68445.0,68444.0,10.22697191]
[1730640077997,2.10187491,68445.0,68444.0,10.22697191]
[1730640078211,2.32716736,68445.0,68444.0,10.22697191]
[1730640078429,2.33807294,68445.0,68444.0,10.22697191]
[1730640078666,2.10186677,68445.0,68444.0,10.22697191]
[1730640079317,2.10165624,68445.0,68444.0,10.22697191]
[1730640080261,2.30291024,68445.0,68444.0,10.22697191]
[1730640080458,2.44901224,68445.0,68444.0,10.22697191]
[1730640080718,2.68521841,68445.0,68444.0,10.22697191]
[1730640081159,2.35253024,68445.0,68444.0,10.22697191]
[1730640081382,2.24775824,68445.0,68444.0,10.22697191]
[1730640081604,2.09075066,68445.0,68444.0,10.22697191]
[1730640081830,2.1016512,68445.0,68444.0,10.22697191]
[1730640083194,2.9138122,68445.0,68444.0,10.22697191]
[1730640083446,2.9138122,68445.0,68444.0,10.14462642]
[1730640083667,2.52735261,68445.0,68444.0,10.14462642]
[1730640083886,2.91352876,68445.0,68444.0,10.14462642]
[1730640084157,2.24746976,68445.0,68444.0,10.14462642]
[1730640084825,2.24246976,68445.0,68444.0,10.14462642]
[1730640085041,2.24746976,68445.0,68444.0,10.14462642]
[1730640085719,2.42245076,68445.0,68444.0,10.14462642]
[1730640086153,2.35702376,68445.0,68444.0,10.14462642]
[1730640086364,2.24746976,68445.0,68444.0,10.14462642]
[1730640087031,2.58058076,68445.0,68444.0,10.14462642]
[1730640087324,2.58058076,68445.0,68444.0,10.09812642]
[1730640088272,2.81069721,68445.0,68444.0,10.09812642]
[1730640088496,2.64399244,68445.0,68444.0,10.09812642]
[1730640089667,2.62999244,68445.0,68444.0,10.09812642]
[1730640089930,2.72789244,68445.0,68444.0,10.09812642]
[1730640090389,2.67847665,68445.0,68444.0,10.09812642]
[1730640090624,2.66447665,68445.0,68444.0,10.09812642]
[1730640090857,2.67847665,68445.0,68444.0,10.09812642]
[1730640091554,1.92347665,68445.0,68444.0,10.09812642]
[1730640091816,2.59457665,68445.0,68444.0,10.09812642]
[1730640092064,2.55253072,68445.0,68444.0,10.09812642]
[1730640092514,2.57543334,68445.0,68444.0,10.09812642]
[1730640093197,2.58943334,68445.0,68444.0,10.09812642]
[1730640093437,2.58943334,68445.0,68444.0,10.0157679]
[1730640093438,2.91015262,68445.0,68444.0,10.0157679]
[1730640093659,2.58943334,68445.0,68444.0,10.0157679]
[1730640095339,2.58943532,68445.0,68444.0,10.0157679]
[1730640095559,2.58949775,68445.0,68444.0,10.0157679]
[1730640096452,2.57859527,68445.0,68444.0,10.0157679]
[1730640097364,2.5615,68445.0,68444.0,10.0157679]
[1730640098064,2.53860145,68445.0,68444.0,10.0157679]
[1730640098288,2.20049327,68445.0,68444.0,10.0627679]
[1730640098503,2.20549327,68445.0,68444.0,10.1440679]
[1730640098976,2.20049327,68445.0,68444.0,10.1440679]
[1730640099195,2.20549327,68445.0,68444.0,10.1440679]
[1730640099876,2.20049327,68445.0,68444.0,10.1440679]
[1730640100098,2.20549327,68445.0,68444.0,10.1440679]
[1730640100311,2.19458572,68445.0,68444.0,10.1440679]
[1730640100984,2.2054993,68445.0,68444.0,10.1440679]
[1730640101216,2.0593973,68445.0,68444.0,10.1440679]
[1730640101430,2.04848372,68445.0,68444.0,10.1440679]
[1730640101665,2.20549914,68445.0,68444.0,10.1440679]
[1730640102555,4.02516614,68445.0,68444.0,10.0157679]
[1730640102771,4.34588542,68445.0,68444.0,10.0157679]
[1730640103001,4.58198074,68445.0,68444.0,10.0157679]
[1730640103670,4.34588542,68445.0,68444.0,10.0157679]
[1730640105382,4.34588542,68445.0,68444.0,9.93342035]
[1730640106254,4.34605949,68445.0,68444.0,9.93342035]
[1730640106722,4.34105949,68445.0,68444.0,9.93342035]
[1730640106938,4.34605949,68445.0,68444.0,9.93342035]
[1730640108327,2.68452249,68445.0,68444.0,9.93342035]
[1730640108568,2.36380168,68445.0,68444.0,9.93342035]
[1730640110710,2.36391318,68445.0,68444.0,9.93342035]
[1730640111816,2.36391413,68445.0,68444.0,9.93342035]
[1730640115392,2.36391413,68445.0,68444.0,9.85107097]
[1730640120903,2.20578413,68445.0,68444.0,9.85107097]
[1730640121353,2.19487129,68445.0,68444.0,9.85107097]
[1730640121564,2.20579027,68445.0,68444.0,9.85107097]
[1730640122488,0.80889123,68445.0,68444.0,9.85107097]
[1730640122712,1.79361453,68445.0,68444.0,9.97527097]
[1730640122962,0.79361453,68445.0,68444.0,9.97527097]
[1730640123442,0.76561453,68445.0,68444.0,9.98027097]
[1730640123680,0.79108113,68445.0,68444.0,9.98027097]
[1730640124141,0.77708113,68445.0,68444.0,9.98027097]
[1730640124357,0.251638,68454.0,68449.0,0.005]
[1730640124581,0.251638,68454.0,68444.0,9.99584819]
[1730640124822,0.251638,68454.0,68450.0,0.00276362]
[1730640125104,0.251638,68454.0,68444.0,9.99340204]
[1730640125105,0.001638,68454.0,68446.0,0.002]
[1730640125322,0.001638,68454.0,68451.0,0.00296653]
[1730640125542,0.001638,68454.0,68452.0,0.075]
[1730640125774,0.001638,68454.0,68452.0,0.12306653]
[1730640126437,0.101638,68454.0,68452.0,0.12306653]
[1730640126888,0.015638,68453.0,68452.0,0.12306653]
[1730640127349,0.029638,68453.0,68452.0,0.12306653]
[1730640127571,0.015638,68453.0,68452.0,0.12598762]
[1730640127794,0.015638,68453.0,68452.0,0.12306653]
[1730640128042,0.17668914,68453.0,68452.0,0.12306653]
[1730640128308,0.129638,68453.0,68452.0,0.12306653]
[1730640128550,0.27662899,68453.0,68452.0,0.26886357]
[1730640128783,0.129638,68453.0,68452.0,0.324942]
[1730640129001,0.129638,68453.0,68452.0,0.471029]
[1730640129459,0.029638,68453.0,68452.0,0.324942]
[1730640129932,0.001638,68454.0,68453.0,0.148085]
[1730640130190,0.001638,68454.0,68453.0,0.35997474]
[1730640130430,0.001638,68454.0,68453.0,0.38619121]
[1730640131118,0.001638,68455.0,68454.0,0.169083]
[1730640131338,0.001638,68455.0,68454.0,0.31488004]
[1730640131558,0.001638,68455.0,68454.0,0.31809062]
[1730640131777,0.001638,68455.0,68454.0,0.2608519]
[1730640132497,0.001638,68455.0,68454.0,0.4069349]
[1730640132690,0.001638,68455.0,68454.0,0.4089349]
[1730640132980,0.001638,68455.0,68454.0,0.2608519]
[1730640133193,0.001638,68455.0,68454.0,0.2618519]
[1730640133194,0.015638,68455.0,68454.0,0.2618519]
[1730640133414,0.016638,68455.0,68454.0,0.2628519]
[1730640133638,0.016638,68455.0,68454.0,0.2398519]
[1730640133858,0.016638,68455.0,68454.0,0.15100762]
[1730640134329,0.016638,68455.0,68454.0,0.32009062]
[1730640134545,0.1,68462.0,68454.0,0.17400762]
[1730640134770,0.1,68462.0,68455.0,0.43795904]
[1730640135011,0.1,68462.0,68457.0,0.146076]
[1730640135247,0.1,68462.0,68458.0,0.14579704]
[1730640135713,0.14677121,68466.0,68459.0,0.00321058]
[1730640135714,0.1,68465.0,68459.0,0.00321058]
[1730640135960,0.1,68465.0,68460.0,0.14579704]
[1730640136399,0.1,68465.0,68461.0,0.00317966]
[1730640136635,0.1,68465.0,68462.0,0.17530231]
[1730640137081,0.1,68465.0,68463.0,0.00316974]
[1730640137307,0.113,68465.0,68464.0,0.14579704]
[1730640137534,0.013,68465.0,68464.0,0.14579704]
[1730640137803,0.058505,68469.0,68464.0,0.14896678]
[1730640138033,0.058505,68469.0,68465.0,0.0178472]
[1730640138265,0.058505,68469.0,68466.0,0.14579704]
[1730640138517,0.14660518,68467.0,68466.0,0.14579704]
[1730640139001,0.14660518,68467.0,68466.0,0.14779704]
[1730640139426,0.058499,68478.0,68466.0,0.14779704]
[1730640139635,0.1,68474.0,68467.0,0.08238577]
[1730640139847,0.1,68474.0,68468.0,0.14579704]
[1730640140099,0.013,68469.0,68468.0,0.14579704]
[1730640140359,0.013,68469.0,68468.0,0.29979704]
[1730640140572,0.1,68474.0,68468.0,0.29979704]
[1730640140805,0.1,68474.0,68470.0,0.154]
[1730640141033,0.01464,68472.0,68471.0,0.29979704]
[1730640141465,0.00164,68472.0,68471.0,0.29979704]
[1730640141694,0.00164,68472.0,68471.0,0.44584404]
[1730640141911,0.00164,68472.0,68471.0,0.41536252]
[1730640142124,0.00164,68472.0,68471.0,0.29979704]
[1730640143205,0.00164,68472.0,68471.0,0.30079704]
[1730640143696,0.01464,68472.0,68471.0,0.30179704]
[1730640143944,0.01464,68472.0,68471.0,0.14779704]
[1730640144187,0.02547903,68472.0,68471.0,0.14779704]
[1730640145085,0.02547903,68472.0,68471.0,0.18199704]
[1730640145298,0.02547903,68472.0,68471.0,0.14779704]
[1730640147260,0.02547903,68472.0,68471.0,0.002]
[1730640147973,0.12547903,68472.0,68471.0,0.002]
[1730640148861,0.02547903,68472.0,68471.0,0.002]
[1730640149102,0.01464,68472.0,68471.0,0.002]
[1730640153937,0.01464,68472.0,68471.0,0.14779704]
[1730640154157,0.01464,68472.0,68471.0,0.16257674]
[1730640154365,0.01464,68472.0,68471.0,0.15045418]
[1730640155303,0.01464,68472.0,68471.0,0.30445418]
[1730640156656,0.48484,68472.0,68471.0,0.00465714]
[1730640156946,0.48484,68472.0,68471.0,0.00365714]
[1730640157160,0.48484,68472.0,68464.0,0.21902447]
[1730640157161,0.1,68471.0,68464.0,0.21902447]
[1730640157368,0.2136096,68466.0,68464.0,0.21902447]
[1730640157601,0.1,68468.0,68464.0,0.21902447]
[1730640157602,0.26021167,68465.0,68464.0,0.21902447]
[1730640157823,0.1,68464.0,68458.0,0.154]
[1730640158008,0.16021167,68463.0,68459.0,0.14579704]
[1730640158472,0.1,68462.0,68459.0,0.14579704]
[1730640158685,0.1,68460.0,68459.0,0.14579704]
[1730640158915,0.26021167,68460.0,68459.0,0.14579704]
[1730640159604,0.26021167,68460.0,68459.0,0.14679704]
[1730640159816,0.26021167,68460.0,68446.0,0.023]
[1730640159817,0.34931167,68460.0,68446.0,0.023]
[1730640160049,0.10851668,68449.0,68447.0,0.29979704]
[1730640160544,0.13022001,68457.0,68447.0,0.32279704]
[1730640160545,0.26872835,68448.0,68447.0,0.32279704]
[1730640160806,0.16021167,68448.0,68447.0,0.32279704]
[1730640161296,0.13022001,68456.0,68447.0,0.33801618]
[1730640161514,0.1,68455.0,68447.0,0.33801618]
[1730640161731,0.23022001,68455.0,68447.0,0.33801618]
[1730640161940,0.014,68448.0,68447.0,0.33901618]
[1730640162163,0.16021167,68453.0,68447.0,0.33801618]
[1730640162381,0.13022001,68450.0,68447.0,0.29979704]
[1730640162596,0.6825,68451.0,68447.0,0.30079704]
[1730640162597,0.16021167,68449.0,68447.0,0.30079704]
[1730640162819,0.6825,68451.0,68447.0,0.30079704]
[1730640162820,0.26021167,68448.0,68447.0,0.29979704]
[1730640163056,0.26021167,68448.0,68445.0,0.154]
[1730640163344,0.26021167,68448.0,68444.0,9.847605]
[1730640163345,0.114,68448.0,68447.0,0.155]
[1730640163574,0.2743707,68448.0,68447.0,0.155]
[1730640164009,0.2743707,68448.0,68444.0,9.847605]
[1730640164010,0.014,68448.0,68444.0,9.847605]
[1730640164232,0.16042863,68447.0,68445.0,0.154]
[1730640164682,0.1,68450.0,68446.0,0.00236426]
[1730640164906,0.1,68448.0,68446.0,0.00236426]
[1730640165124,0.26051231,68447.0,68446.0,0.00236426]
[1730640165585,0.27451231,68447.0,68446.0,0.00236426]
[1730640165796,0.1,68446.0,68444.0,9.847605]
[1730640166030,0.26051231,68445.0,68444.0,9.847605]
[1730640167329,0.27451231,68445.0,68444.0,9.847605]
[1730640168021,0.42147421,68445.0,68444.0,9.847605]
[1730640168467,0.28887602,68445.0,68444.0,9.847605]
[1730640168967,0.28887602,68445.0,68444.0,9.84996926]
[1730640176393,0.28887602,68445.0,68444.0,9.995795]
[1730640177237,0.28887602,68445.0,68444.0,9.84996926]
[1730640180140,0.28887602,68445.0,68444.0,10.1517663]
[1730640180141,0.50339207,68445.0,68444.0,10.1517663]
[1730640180375,0.50339207,68445.0,68444.0,10.2978703]
[1730640180376,0.28887602,68445.0,68444.0,10.2978703]
[1730640180585,0.28887602,68445.0,68444.0,10.1497663]
[1730640180817,0.58279207,68445.0,68444.0,10.00396926]
[1730640181289,0.36827602,68445.0,68444.0,10.00396926]
[1730640181517,0.28887602,68445.0,68444.0,10.00396926]
[1730640184440,0.53887602,68445.0,68444.0,10.00396926]
[1730640184902,0.75346895,68445.0,68444.0,10.00596926]
[1730640185145,0.75356841,68445.0,68444.0,10.00596926]
[1730640185387,0.75356841,68445.0,68444.0,10.00396926]
[1730640185595,0.53895789,68445.0,68444.0,10.00396926]
[1730640188342,0.53895789,68445.0,68444.0,10.1497663]
[1730640188572,0.75372821,68445.0,68444.0,10.1497663]
[1730640188790,0.65372821,68445.0,68444.0,10.1497663]
[1730640189041,0.18895789,68445.0,68444.0,10.1497663]
[1730640189257,0.18895789,68445.0,68444.0,10.2958703]
[1730640189495,0.18895789,68445.0,68444.0,10.2978703]
[1730640189721,0.18895789,68445.0,68444.0,10.3208703]
[1730640190377,0.31378854,68445.0,68444.0,10.3208703]
[1730640190624,0.014,68447.0,68446.0,0.3021]
[1730640190848,0.014,68447.0,68446.0,0.47089704]
[1730640191058,0.014,68447.0,68446.0,0.61930575]
[1730640191315,0.14490088,68447.0,68446.0,0.61930575]
[1730640191817,0.001638,68448.0,68447.0,0.325098]
[1730640192038,0.1472827,68459.0,68458.0,0.002]
[1730640192261,0.21902447,68460.0,68459.0,0.146072]
[1730640192485,0.1,68460.0,68459.0,0.55108734]
[1730640192720,0.1,68460.0,68459.0,0.55345766]
[1730640193356,0.1472827,68462.0,68459.0,0.55345766]
[1730640193357,0.1,68461.0,68459.0,0.55345766]
[1730640193564,0.2472827,68461.0,68460.0,0.30179704]
[1730640194003,0.2472827,68461.0,68460.0,0.29979704]
[1730640194234,0.1,68464.0,68461.0,0.154]
[1730640194464,0.1,68464.0,68461.0,0.29979704]
[1730640194947,0.1,68464.0,68462.0,0.00237032]
[1730640195165,0.01090739,68463.0,68462.0,0.00237032]
[1730640196232,0.01090739,68463.0,68462.0,0.00337032]
[1730640196659,0.01090739,68463.0,68462.0,0.00237032]
[1730640196883,0.03290739,68463.0,68462.0,0.00437032]
[1730640197310,0.03290739,68463.0,68462.0,0.18878706]
[1730640197539,0.03290739,68463.0,68462.0,0.15837032]
[1730640197750,0.25680739,68463.0,68462.0,0.00437032]
[1730640197960,0.25680739,68463.0,68462.0,0.002]
[1730640198394,0.24380739,68463.0,68462.0,0.001]
[1730640198604,0.25680739,68463.0,68462.0,0.002]
[1730640198830,0.39495469,68463.0,68462.0,0.001]
[1730640199094,0.24880739,68463.0,68462.0,0.001]
[1730640199323,0.25,68456.0,68455.0,0.21902447]
[1730640199532,0.33690739,68456.0,68455.0,0.21902447]
[1730640199742,0.0479,68455.0,68450.0,0.154]
[1730640199976,0.01090739,68454.0,68450.0,0.154]
[1730640200194,0.01090739,68453.0,68450.0,0.154]
[1730640200427,0.01090739,68452.0,68450.0,0.154]
[1730640200638,0.0479,68455.0,68450.0,0.154]
[1730640200639,0.01090739,68451.0,68450.0,0.154]
[1730640200860,0.01090739,68451.0,68446.0,0.154]
[1730640201081,0.13077198,68448.0,68446.0,0.29979704]
[1730640201534,0.076,68447.0,68446.0,0.154]
[1730640201784,0.326,68447.0,68444.0,9.847605]
[1730640202013,0.0479,68446.0,68444.0,9.847605]
[1730640202457,0.0479,68446.0,68444.0,9.89147273]
[1730640203555,0.0749,68446.0,68444.0,9.89347273]
[1730640203776,0.0749,68446.0,68444.0,9.849605]
[1730640205563,0.16091476,68445.0,68444.0,9.849605]
[1730640206475,0.16091476,68445.0,68444.0,9.848605]
[1730640206693,0.16091476,68445.0,68444.0,9.847605]
[1730640206932,0.16091476,68445.0,68444.0,9.848605]
[1730640206933,0.17391476,68445.0,68444.0,9.848605]
[1730640207155,0.17391476,68445.0,68444.0,9.849605]
[1730640207156,0.18791476,68445.0,68444.0,9.849605]
[1730640208121,0.18791476,68445.0,68444.0,9.99543074]
[1730640208122,0.18796488,68445.0,68444.0,9.99543074]
[1730640211631,0.18796488,68445.0,68444.0,9.99743074]
[1730640212518,0.18796488,68445.0,68444.0,9.99543074]
[1730640213852,0.18796488,68445.0,68444.0,9.9982554]
[1730640214758,0.18796488,68445.0,68444.0,10.29805244]
[1730640215937,0.18796488,68445.0,68444.0,10.1522267]
[1730640217540,0.18796488,68445.0,68444.0,10.1542267]
[1730640217758,0.18796488,68445.0,68444.0,10.1522267]
[1730640221497,0.20160202,68445.0,68444.0,10.1522267]
[1730640221720,0.20173633,68445.0,68444.0,10.1522267]
[1730640222459,0.20173633,68445.0,68444.0,10.29805244]
[1730640222885,0.20173633,68445.0,68444.0,10.1522267]
[1730640223320,0.20173884,68445.0,68444.0,10.1522267]
[1730640223529,0.20173884,68445.0,68444.0,10.10649962]
[1730640224189,0.27833884,68445.0,68444.0,10.10649962]
[1730640224434,0.27833884,68445.0,68444.0,9.80670258]
[1730640224654,0.32673884,68445.0,68444.0,9.80670258]
[1730640226576,0.31309919,68445.0,68444.0,9.80670258]
[1730640226795,0.32674992,68445.0,68444.0,9.80670258]
[1730640227220,0.32674992,68445.0,68444.0,9.90323238]
[1730640227716,0.32674992,68445.0,68444.0,9.90523238]
[1730640227956,0.32674992,68445.0,68444.0,9.89366938]
[1730640228380,0.32674992,68445.0,68444.0,10.04766938]
[1730640228381,0.20174992,68445.0,68444.0,10.04766938]
[1730640230569,0.18809919,68445.0,68444.0,10.04766938]
[1730640231005,0.33544,68445.0,68444.0,10.04766938]
[1730640231211,0.18809919,68445.0,68444.0,10.04766938]
[1730640231648,0.20177088,68445.0,68444.0,10.04766938]
[1730640233345,0.18809919,68445.0,68444.0,10.04766938]
[1730640233560,0.2017706,68445.0,68444.0,10.04766938]
[1730640233814,0.20177015,68445.0,68444.0,10.04766938]
[1730640235242,0.2018448,68445.0,68444.0,10.04766938]
[1730640236036,0.2018448,68445.0,68444.0,10.19346642]
[1730640236459,0.2018448,68445.0,68444.0,10.33957042]
[1730640236676,0.18817384,68445.0,68444.0,10.36257042]
[1730640236922,0.20184364,68445.0,68444.0,10.36257042]
[1730640237346,0.20184364,68445.0,68444.0,10.26604062]
[1730640237622,0.34921621,68445.0,68444.0,10.26604062]
[1730640237835,0.20184364,68445.0,68444.0,10.26604062]
[1730640239763,0.20190193,68445.0,68444.0,10.26604062]
[1730640240403,0.20189873,68445.0,68444.0,10.26604062]
[1730640242266,0.20189873,68445.0,68444.0,10.28956691]
[1730640242778,0.20189693,68445.0,68444.0,10.28956691]
[1730640243017,0.20197218,68445.0,68444.0,10.28956691]
[1730640243228,0.20197226,68445.0,68444.0,10.28956691]
[1730640243801,0.20361026,68445.0,68444.0,10.28956691]
[1730640246107,0.20361026,68445.0,68444.0,10.26604062]
[1730640246458,0.20360613,68445.0,68444.0,10.26604062]
[1730640247126,0.20360613,68445.0,68444.0,10.11993662]
[1730640247353,0.33380613,68445.0,68444.0,9.79513958]
[1730640247494,0.33380613,68445.0,68444.0,9.74941422]
[1730640251401,0.33380613,68445.0,68444.0,9.75141422]
[1730640252026,0.33382911,68445.0,68444.0,10.343141]
[1730640252251,0.20362911,68445.0,68444.0,10.343141]
[1730640252782,0.20362911,68445.0,68444.0,10.366141]
[1730640254707,0.20362678,68445.0,68444.0,10.366141]
[1730640256744,0.20363664,68445.0,68444.0,10.366141]
[1730640257878,0.20364121,68445.0,68444.0,10.366141]
[1730640260704,0.19064121,68445.0,68444.0,10.365141]
[1730640261184,0.20364121,68445.0,68444.0,10.22031526]
[1730640261410,0.30424088,68445.0,68444.0,10.21831526]
[1730640261881,0.33124088,68445.0,68444.0,10.22031526]
[1730640262336,0.33124088,68445.0,68444.0,10.366141]
[1730640262550,0.31724088,68445.0,68444.0,10.365141]
[1730640262813,0.31724088,68445.0,68444.0,10.07121126]
[1730640263062,0.31724088,68445.0,68444.0,10.04821126]
[1730640263299,0.31724088,68445.0,68444.0,9.74841422]
[1730640263521,0.31724088,68445.0,68444.0,9.70268835]
[1730640263978,0.32924088,68445.0,68444.0,9.70368835]
[1730640264906,0.32924047,68445.0,68444.0,9.70368835]
[1730640271149,0.16790025,68445.0,68444.0,9.70368835]
[1730640273195,0.16790025,68445.0,68444.0,9.82616287]
[1730640273601,0.16790025,68445.0,68444.0,9.78043645]
[1730640273849,0.154238,68445.0,68444.0,9.78043645]
[1730640274688,0.154238,68445.0,68444.0,9.65996193]
[1730640275494,0.31560401,68445.0,68444.0,9.65996193]
[1730640275872,0.31560401,68445.0,68444.0,9.65796193]
[1730640276722,0.32926431,68445.0,68444.0,9.65796193]
[1730640277056,0.32926431,68445.0,68444.0,9.65996193]
[1730640279380,0.32926408,68445.0,68444.0,9.65996193]
[1730640279593,0.32926408,68445.0,68444.0,9.65796193]
[1730640281290,0.32925933,68445.0,68444.0,9.65796193]
[1730640283333,0.32925887,68445.0,68444.0,9.65796193]
[1730640283546,0.32925887,68445.0,68444.0,9.61223551]
[1730640283752,0.31559926,68445.0,68444.0,9.61223551]
[1730640285570,0.32652709,68445.0,68444.0,9.76623551]
[1730640285802,0.31559926,68445.0,68444.0,9.61223551]
[1730640286460,0.32652338,68445.0,68444.0,9.61223551]
[1730640286674,0.31559552,68445.0,68444.0,9.61223551]
[1730640287819,0.34018356,68445.0,68444.0,9.61223551]
[1730640288035,0.32925553,68445.0,68444.0,9.61223551]
[1730640288260,0.34018354,68445.0,68444.0,9.61223551]
[1730640289813,0.31559552,68445.0,68444.0,9.61223551]
[1730640290039,0.34018899,68445.0,68444.0,9.61223551]
[1730640290257,0.31559552,68445.0,68444.0,9.61223551]
[1730640290470,0.34018899,68445.0,68444.0,9.61223551]
[1730640291200,0.34018098,68445.0,68444.0,9.61223551]
[1730640293671,0.34018098,68445.0,68444.0,9.56650567]
[1730640295676,0.34011889,68445.0,68444.0,9.56650567]
[1730640296773,0.44011889,68445.0,68444.0,9.56650567]
[1730640297011,0.83622089,68445.0,68444.0,9.56650567]
[1730640297227,1.06202327,68445.0,68444.0,9.56650567]
[1730640297695,0.83622089,68445.0,68444.0,9.56650567]
[1730640297918,1.02336023,68445.0,68444.0,9.56450567]
[1730640298132,1.03636023,68445.0,68444.0,9.56550567]
[1730640298352,1.03636023,68445.0,68444.0,9.56450567]
[1730640298778,0.83720794,68445.0,68444.0,9.56550567]
[1730640299845,0.85120794,68445.0,68444.0,9.56550567]
[1730640300260,0.85106878,68445.0,68444.0,9.56550567]
[1730640300926,1.45026139,68445.0,68444.0,9.56550567]
[1730640301142,0.83705133,68445.0,68444.0,9.56550567]
[1730640302671,0.85105133,68445.0,68444.0,9.56550567]
[1730640303545,0.93055008,68445.0,68444.0,9.56550567]
[1730640303759,0.69130318,68445.0,68444.0,9.51977023]
[1730640304253,0.90607787,68445.0,68444.0,9.51977023]
[1730640304933,0.69130318,68445.0,68444.0,9.51977023]
[1730640305117,0.90607787,68445.0,68444.0,9.51977023]
[1730640306449,2.59643408,68445.0,68444.0,9.51977023]
[1730640306663,2.82204165,68445.0,68444.0,9.51977023]
[1730640307321,2.82203513,68445.0,68444.0,9.51977023]
[1730640307961,2.8219761,68445.0,68444.0,9.51977023]